[Event "Titled Tuesday Blitz May 03 Early 2022"]
[White "Barria Zuniga, Daniel"]
[Black "Fajdetic, Hrvoje"]
[WhiteFideId "3400816"]
[BlackFideId "14501945"]
[WhiteElo "2414"]
[BlackElo "2172"]
[Result "1-0"]
[Round "01"]
[TimeControl "180+1"]
[Date "2022.05.03"]
[WhiteClock "0:00:22"]
[BlackClock "0:00:05"]

1. c4 {[%clk 0:02:48]}  f5 {[%clk 0:02:59]} 2. g3 {[%clk 0:02:47]}  Nf6 {[%clk 0:02:58]} 3. Bg2 {[%clk 0:02:45]}  e5 {[%clk 0:02:58]} 4. Nc3 {[%clk 0:02:43]}  d6 {[%clk 0:02:58]} 5. d3 {[%clk 0:02:42]}  Be7 {[%clk 0:02:58]} 6. Nh3 {[%clk 0:02:31]}  O-O {[%clk 0:02:57]} 7. O-O {[%clk 0:02:31]}  Nc6 {[%clk 0:02:57]} 8. Rb1 {[%clk 0:02:30]}  a5 {[%clk 0:02:56]} 9. a3 {[%clk 0:02:30]}  Qe8 {[%clk 0:02:56]} 10. b4 {[%clk 0:02:27]}  axb4 {[%clk 0:02:53]} 11. axb4 {[%clk 0:02:27]}  Qh5 {[%clk 0:02:49]} 12. e3 {[%clk 0:02:26]}  Qh6 {[%clk 0:02:45]} 13. b5 {[%clk 0:02:21]}  Nd8 {[%clk 0:02:40]} 14. f4 {[%clk 0:02:14]}  Nf7 {[%clk 0:01:55]} 15. e4 {[%clk 0:01:57]}  exf4 {[%clk 0:01:27]} 16. Nxf4 {[%clk 0:01:50]}  g5 {[%clk 0:01:07]} 17. Nfd5 {[%clk 0:01:47]}  Nxd5 {[%clk 0:01:03]} 18. Nxd5 {[%clk 0:01:47]}  Bd8 {[%clk 0:01:03]} 19. exf5 {[%clk 0:01:44]}  Ne5 {[%clk 0:00:46]} 20. g4 {[%clk 0:01:31]}  Ra2 {[%clk 0:00:45]} 21. h3 {[%clk 0:01:28]}  c6 {[%clk 0:00:29]} 22. bxc6 {[%clk 0:01:20]}  bxc6 {[%clk 0:00:30]} 23. Nc3 {[%clk 0:01:19]}  Rxg2+ {[%clk 0:00:28]} 24. Kxg2 {[%clk 0:01:17]}  Qg7 {[%clk 0:00:29]} 25. Ne4 {[%clk 0:01:15]}  d5 {[%clk 0:00:22]} 26. cxd5 {[%clk 0:01:14]}  cxd5 {[%clk 0:00:23]} 27. Ng3 {[%clk 0:01:13]}  Ba6 {[%clk 0:00:20]} 28. Rb3 {[%clk 0:00:59]}  Qd7 {[%clk 0:00:15]} 29. Re1 {[%clk 0:00:56]}  Bc7 {[%clk 0:00:13]} 30. Bxg5 {[%clk 0:00:53]}  Nf7 {[%clk 0:00:12]} 31. Be3 {[%clk 0:00:49]}  Qd6 {[%clk 0:00:11]} 32. Bf2 {[%clk 0:00:48]}  d4 {[%clk 0:00:11]} 33. Qf3 {[%clk 0:00:43]}  Ng5 {[%clk 0:00:09]} 34. Qd1 {[%clk 0:00:35]}  Qd5+ {[%clk 0:00:09]} 35. Ne4 {[%clk 0:00:34]}  Bb7 {[%clk 0:00:08]} 36. Rxb7 {[%clk 0:00:30]}  Qxb7 {[%clk 0:00:08]} 37. Bh4 {[%clk 0:00:27]}  Nxe4 {[%clk 0:00:07]} 38. Rxe4 {[%clk 0:00:27]}  Qd5 {[%clk 0:00:07]} 39. Qf3 {[%clk 0:00:26]}  Qd6 {[%clk 0:00:07]} 40. Bg3 {[%clk 0:00:26]}  Qxg3+ {[%clk 0:00:07]} 41. Qxg3 {[%clk 0:00:25]}  Bxg3 {[%clk 0:00:08]} 42. Kxg3 {[%clk 0:00:26]}  Rd8 {[%clk 0:00:09]} 43. Kf4 {[%clk 0:00:26]}  Kf7 {[%clk 0:00:10]} 44. g5 {[%clk 0:00:26]}  Rd5 {[%clk 0:00:09]} 45. h4 {[%clk 0:00:26]}  h6 {[%clk 0:00:09]} 46. Re6 {[%clk 0:00:24]}  hxg5+ {[%clk 0:00:08]} 47. hxg5 {[%clk 0:00:25]}  Ra5 {[%clk 0:00:08]} 48. g6+ {[%clk 0:00:25]}  Kg7 {[%clk 0:00:08]} 49. Kg5 {[%clk 0:00:25]}  Ra1 {[%clk 0:00:08]} 50. Re7+ {[%clk 0:00:25]}  Kf8 {[%clk 0:00:08]} 51. Rd7 {[%clk 0:00:24]}  Rd1 {[%clk 0:00:07]} 52. Rxd4 {[%clk 0:00:23]}  Ke7 {[%clk 0:00:08]} 53. g7 {[%clk 0:00:22]}  Rg1+ {[%clk 0:00:06]} 54. Rg4 {[%clk 0:00:22]}  Rxg4+ {[%clk 0:00:04]} 55. Kxg4 {[%clk 0:00:22]}  Kf7 {[%clk 0:00:05]} 56. f6 {[%clk 0:00:22]} 1-0


[Site "https://www.chess.com"]

[Event "Titled Tuesday Blitz May 03 Early 2022"]
[White "Begunov, Konstantin"]
[Black "Rohith Krishna S"]
[WhiteFideId "4118510"]
[BlackFideId "46617051"]
[WhiteElo "2434"]
[BlackElo "2748"]
[Result "1-0"]
[Round "01"]
[TimeControl "180+1"]
[Date "2022.05.03"]
[WhiteClock "0:01:03"]
[BlackClock "0:01:32"]

1. d4 {[%clk 0:02:57]}  e6 {[%clk 0:03:00]} 2. c4 {[%clk 0:02:56]}  Nf6 {[%clk 0:03:01]} 3. Nf3 {[%clk 0:02:55]}  d5 {[%clk 0:02:59]} 4. Nc3 {[%clk 0:02:55]}  Be7 {[%clk 0:02:56]} 5. cxd5 {[%clk 0:02:55]}  exd5 {[%clk 0:02:55]} 6. Bg5 {[%clk 0:02:55]}  O-O {[%clk 0:02:55]} 7. e3 {[%clk 0:02:55]}  c6 {[%clk 0:02:56]} 8. Qc2 {[%clk 0:02:55]}  Nbd7 {[%clk 0:02:56]} 9. Bd3 {[%clk 0:02:55]}  Re8 {[%clk 0:02:46]} 10. O-O {[%clk 0:02:55]}  h6 {[%clk 0:02:40]} 11. Bh4 {[%clk 0:02:54]}  Ne4 {[%clk 0:02:40]} 12. Bxe4 {[%clk 0:02:54]}  Bxh4 {[%clk 0:02:37]} 13. Bh7+ {[%clk 0:02:53]}  Kf8 {[%clk 0:02:34]} 14. Bf5 {[%clk 0:02:54]}  Bf6 {[%clk 0:02:15]} 15. b4 {[%clk 0:02:53]}  a6 {[%clk 0:02:14]} 16. a4 {[%clk 0:02:53]}  Nb6 {[%clk 0:02:11]} 17. b5 {[%clk 0:02:48]}  Nc4 {[%clk 0:02:09]} 18. bxc6 {[%clk 0:02:43]}  bxc6 {[%clk 0:02:09]} 19. Bxc8 {[%clk 0:02:19]}  Rxc8 {[%clk 0:02:10]} 20. Rfd1 {[%clk 0:02:19]}  Qa5 {[%clk 0:02:10]} 21. Nd2 {[%clk 0:02:13]}  Nxd2 {[%clk 0:02:09]} 22. Qxd2 {[%clk 0:02:11]}  Rb8 {[%clk 0:02:09]} 23. Rab1 {[%clk 0:02:00]}  Be7 {[%clk 0:02:08]} 24. g3 {[%clk 0:01:47]}  Rb4 {[%clk 0:01:48]} 25. Qc2 {[%clk 0:01:24]}  Rc4 {[%clk 0:01:47]} 26. Qh7 {[%clk 0:01:20]}  Bf6 {[%clk 0:01:41]} 27. Qh8+ {[%clk 0:01:05]}  Ke7 {[%clk 0:01:34]} 28. Rb7+ {[%clk 0:01:06]}  Kd6 {[%clk 0:01:34]} 29. Qxe8 {[%clk 0:01:05]}  Rxc3 {[%clk 0:01:32]} 30. Qd7# {[%clk 0:01:03]} 1-0


[Site "https://www.chess.com"]

[Event "Titled Tuesday Blitz May 03 Early 2022"]
[White "Bekturov, Tamerlan"]
[Black "Ramirez Vido, Robert Yorisan"]
[WhiteFideId "13710184"]
[BlackFideId "3513823"]
[WhiteElo "2151"]
[BlackElo "2271"]
[Result "0-1"]
[Round "01"]
[TimeControl "180+1"]
[Date "2022.05.03"]
[WhiteClock "0:01:35"]
[BlackClock "0:02:15"]

1. d4 {[%clk 0:02:55]}  g6 {[%clk 0:02:59]} 2. e4 {[%clk 0:02:55]}  d6 {[%clk 0:02:59]} 3. c4 {[%clk 0:02:55]}  Nf6 {[%clk 0:02:54]} 4. Nc3 {[%clk 0:02:54]}  Bg7 {[%clk 0:02:54]} 5. Nf3 {[%clk 0:02:52]}  O-O {[%clk 0:02:54]} 6. Be2 {[%clk 0:02:47]}  Na6 {[%clk 0:02:53]} 7. Be3 {[%clk 0:02:46]}  e5 {[%clk 0:02:52]} 8. d5 {[%clk 0:02:46]}  Ng4 {[%clk 0:02:51]} 9. Bd2 {[%clk 0:02:46]}  f5 {[%clk 0:02:49]} 10. Ng5 {[%clk 0:02:40]}  Nf6 {[%clk 0:02:47]} 11. f3 {[%clk 0:02:37]}  Qe7 {[%clk 0:02:43]} 12. Be3 {[%clk 0:02:16]}  h6 {[%clk 0:02:39]} 13. Nh3 {[%clk 0:02:14]}  f4 {[%clk 0:02:39]} 14. Bf2 {[%clk 0:02:14]}  Bxh3 {[%clk 0:02:38]} 15. gxh3 {[%clk 0:02:15]}  c6 {[%clk 0:02:34]} 16. O-O {[%clk 0:02:11]}  c5 {[%clk 0:02:32]} 17. a3 {[%clk 0:02:11]}  Nh7 {[%clk 0:02:25]} 18. Re1 {[%clk 0:01:45]}  Qg5+ {[%clk 0:02:17]} 19. Kh1 {[%clk 0:01:44]}  Qh5 {[%clk 0:02:17]} 20. Bf1 {[%clk 0:01:35]}  Ng5 {[%clk 0:02:15]} 0-1


[Site "https://www.chess.com"]

[Event "Titled Tuesday Blitz May 03 Early 2022"]
[White "Bendayan Claros, Aaron"]
[Black "Tatarinov, Dmitry"]
[WhiteFideId "3803392"]
[BlackFideId "24160067"]
[WhiteElo "2132"]
[BlackElo "2302"]
[Result "0-1"]
[Round "01"]
[TimeControl "180+1"]
[Date "2022.05.03"]
[WhiteClock "0:00:08"]
[BlackClock "0:01:54"]

1. d4 {[%clk 0:03:00]}  Nf6 {[%clk 0:02:59]} 2. Bg5 {[%clk 0:03:00]}  d5 {[%clk 0:02:59]} 3. e3 {[%clk 0:03:00]}  c5 {[%clk 0:02:59]} 4. c3 {[%clk 0:03:01]}  Qb6 {[%clk 0:02:59]} 5. Qb3 {[%clk 0:03:00]}  c4 {[%clk 0:02:59]} 6. Qxb6 {[%clk 0:03:00]}  axb6 {[%clk 0:03:00]} 7. Nd2 {[%clk 0:03:00]}  b5 {[%clk 0:02:59]} 8. a3 {[%clk 0:03:01]}  Nc6 {[%clk 0:02:59]} 9. Rd1 {[%clk 0:02:57]}  Nd7 {[%clk 0:02:58]} 10. e4 {[%clk 0:02:56]}  e6 {[%clk 0:02:57]} 11. Ngf3 {[%clk 0:02:54]}  Nb6 {[%clk 0:02:57]} 12. Nb1 {[%clk 0:02:49]}  Na4 {[%clk 0:02:57]} 13. exd5 {[%clk 0:02:50]}  exd5 {[%clk 0:02:57]} 14. Bc1 {[%clk 0:02:50]}  Bf5 {[%clk 0:02:56]} 15. Nbd2 {[%clk 0:02:49]}  Bc2 {[%clk 0:02:55]} 16. Be2 {[%clk 0:02:50]}  Bxd1 {[%clk 0:02:55]} 17. Bxd1 {[%clk 0:02:50]}  Kd7 {[%clk 0:02:55]} 18. O-O {[%clk 0:02:51]}  Bd6 {[%clk 0:02:55]} 19. Bc2 {[%clk 0:02:51]}  g6 {[%clk 0:02:54]} 20. g3 {[%clk 0:02:51]}  f6 {[%clk 0:02:54]} 21. Kg2 {[%clk 0:02:51]}  Rhe8 {[%clk 0:02:52]} 22. Rd1 {[%clk 0:02:50]}  Kc7 {[%clk 0:02:45]} 23. h4 {[%clk 0:02:49]}  Bxa3 {[%clk 0:02:26]} 24. bxa3 {[%clk 0:02:48]}  Nxc3 {[%clk 0:02:27]} 25. Rh1 {[%clk 0:02:45]}  b4 {[%clk 0:02:27]} 26. axb4 {[%clk 0:02:45]}  Nxb4 {[%clk 0:02:28]} 27. Bd1 {[%clk 0:02:39]}  Ra2 {[%clk 0:02:21]} 28. Nh2 {[%clk 0:01:57]}  Nd3 {[%clk 0:02:21]} 29. Bf3 {[%clk 0:01:04]}  Ne2 {[%clk 0:02:11]} 30. Bxd5 {[%clk 0:00:32]}  Nexc1 {[%clk 0:02:06]} 31. Nxc4 {[%clk 0:00:32]}  Rxf2+ {[%clk 0:02:05]} 32. Kh3 {[%clk 0:00:32]}  f5 {[%clk 0:01:58]} 33. Ne5 {[%clk 0:00:29]}  Rc2 {[%clk 0:01:54]} 34. Nhf3 {[%clk 0:00:23]}  Nf2+ {[%clk 0:01:53]} 35. Kg2 {[%clk 0:00:16]}  Nxh1+ {[%clk 0:01:53]} 36. Kxh1 {[%clk 0:00:17]}  Ne2 {[%clk 0:01:53]} 37. Bb3 {[%clk 0:00:11]}  Nxg3+ {[%clk 0:01:53]} 38. Kg1 {[%clk 0:00:10]}  Rb2 {[%clk 0:01:54]} 39. Ba4 {[%clk 0:00:08]}  Ra8 {[%clk 0:01:54]} 0-1


[Site "https://www.chess.com"]

[Event "Titled Tuesday Blitz May 03 Early 2022"]
[White "Bifulco, Michel"]
[Black "Melikyan, Gnel"]
[WhiteFideId "828580"]
[BlackFideId "54109990"]
[WhiteElo "2165"]
[BlackElo "1772"]
[Result "0-1"]
[Round "01"]
[TimeControl "180+1"]
[Date "2022.05.03"]
[WhiteClock "0:01:17"]
[BlackClock "0:01:40"]

1. d4 {[%clk 0:03:00]}  Nf6 {[%clk 0:02:59]} 2. Nc3 {[%clk 0:03:00]}  d5 {[%clk 0:02:59]} 3. Bf4 {[%clk 0:03:00]}  c6 {[%clk 0:02:59]} 4. e3 {[%clk 0:03:00]}  Qb6 {[%clk 0:02:59]} 5. Rb1 {[%clk 0:02:59]}  Bf5 {[%clk 0:02:59]} 6. f3 {[%clk 0:02:58]}  e6 {[%clk 0:02:59]} 7. g4 {[%clk 0:02:57]}  Bg6 {[%clk 0:02:58]} 8. h4 {[%clk 0:02:57]}  h6 {[%clk 0:02:51]} 9. h5 {[%clk 0:02:54]}  Bh7 {[%clk 0:02:51]} 10. Bd3 {[%clk 0:02:55]}  Bxd3 {[%clk 0:02:49]} 11. Qxd3 {[%clk 0:02:56]}  Nbd7 {[%clk 0:02:48]} 12. Nge2 {[%clk 0:02:56]}  a6 {[%clk 0:02:45]} 13. Kf2 {[%clk 0:02:54]}  c5 {[%clk 0:02:43]} 14. dxc5 {[%clk 0:02:35]}  Nxc5 {[%clk 0:02:33]} 15. Qd4 {[%clk 0:02:28]}  Ncd7 {[%clk 0:02:33]} 16. Qxb6 {[%clk 0:02:27]}  Nxb6 {[%clk 0:02:33]} 17. e4 {[%clk 0:02:07]}  Bc5+ {[%clk 0:02:27]} 18. Be3 {[%clk 0:02:04]}  Bxe3+ {[%clk 0:02:27]} 19. Kxe3 {[%clk 0:02:05]}  dxe4 {[%clk 0:02:22]} 20. Nxe4 {[%clk 0:02:04]}  Nc4+ {[%clk 0:02:13]} 21. Kd4 {[%clk 0:02:01]}  Nxe4 {[%clk 0:02:11]} 22. fxe4 {[%clk 0:01:55]}  Nd2 {[%clk 0:02:07]} 23. Rbd1 {[%clk 0:01:51]}  O-O-O+ {[%clk 0:02:02]} 24. Ke3 {[%clk 0:01:40]}  Nc4+ {[%clk 0:02:01]} 25. Kf3 {[%clk 0:01:37]}  Nxb2 {[%clk 0:01:58]} 26. Rb1 {[%clk 0:01:25]}  Nc4 {[%clk 0:01:57]} 27. Rb4 {[%clk 0:01:25]}  Ne5+ {[%clk 0:01:50]} 28. Kf4 {[%clk 0:01:25]}  Nc6 {[%clk 0:01:50]} 29. Rc4 {[%clk 0:01:24]}  Kc7 {[%clk 0:01:44]} 30. Nc3 {[%clk 0:01:17]}  b5 {[%clk 0:01:40]} 0-1


[Site "https://www.chess.com"]

[Event "Titled Tuesday Blitz May 03 Early 2022"]
[White "Boe, Mads"]
[Black "Safarli, Eltaj"]
[WhiteFideId "1401408"]
[BlackFideId "13402129"]
[WhiteElo "2343"]
[BlackElo "2634"]
[Result "1/2-1/2"]
[Round "01"]
[TimeControl "180+1"]
[Date "2022.05.03"]
[WhiteClock "0:00:16"]
[BlackClock "0:00:07"]

1. e4 {[%clk 0:02:57]}  e5 {[%clk 0:02:57]} 2. Nf3 {[%clk 0:02:53]}  Nc6 {[%clk 0:02:58]} 3. d4 {[%clk 0:02:53]}  exd4 {[%clk 0:02:58]} 4. Nxd4 {[%clk 0:02:54]}  Bc5 {[%clk 0:02:57]} 5. Be3 {[%clk 0:02:54]}  Qf6 {[%clk 0:02:54]} 6. c3 {[%clk 0:02:53]}  Nge7 {[%clk 0:02:55]} 7. Bc4 {[%clk 0:02:53]}  O-O {[%clk 0:02:52]} 8. O-O {[%clk 0:02:53]}  d6 {[%clk 0:02:36]} 9. Nxc6 {[%clk 0:02:48]}  Nxc6 {[%clk 0:02:37]} 10. Bxc5 {[%clk 0:02:46]}  dxc5 {[%clk 0:02:38]} 11. f4 {[%clk 0:02:46]}  Be6 {[%clk 0:02:29]} 12. Bb5 {[%clk 0:02:41]}  Rad8 {[%clk 0:02:28]} 13. Qe2 {[%clk 0:02:39]}  Na5 {[%clk 0:02:21]} 14. Nd2 {[%clk 0:02:33]}  a6 {[%clk 0:02:07]} 15. Ba4 {[%clk 0:02:28]}  c4 {[%clk 0:01:52]} 16. Bc2 {[%clk 0:02:19]}  Bg4 {[%clk 0:01:46]} 17. Qe3 {[%clk 0:02:17]}  Qb6 {[%clk 0:01:41]} 18. Qxb6 {[%clk 0:02:13]}  cxb6 {[%clk 0:01:42]} 19. Rf2 {[%clk 0:02:07]}  b5 {[%clk 0:01:42]} 20. h3 {[%clk 0:02:07]}  Bc8 {[%clk 0:01:40]} 21. Nf3 {[%clk 0:02:04]}  Nc6 {[%clk 0:01:30]} 22. Rd1 {[%clk 0:02:01]}  f6 {[%clk 0:01:28]} 23. Rfd2 {[%clk 0:02:00]}  Rxd2 {[%clk 0:01:28]} 24. Rxd2 {[%clk 0:02:01]}  Re8 {[%clk 0:01:28]} 25. Kf2 {[%clk 0:02:00]}  Kf7 {[%clk 0:01:26]} 26. Nd4 {[%clk 0:01:43]}  Nxd4 {[%clk 0:01:26]} 27. Rxd4 {[%clk 0:01:43]}  Ke7 {[%clk 0:01:26]} 28. Kf3 {[%clk 0:01:36]}  Be6 {[%clk 0:01:26]} 29. Rd2 {[%clk 0:01:34]}  Rc8 {[%clk 0:01:25]} 30. Ke3 {[%clk 0:01:34]}  b4 {[%clk 0:01:24]} 31. Rd4 {[%clk 0:01:24]}  bxc3 {[%clk 0:01:17]} 32. bxc3 {[%clk 0:01:25]}  Rc5 {[%clk 0:01:16]} 33. Bd1 {[%clk 0:01:19]}  Ra5 {[%clk 0:01:14]} 34. a4 {[%clk 0:01:19]}  b5 {[%clk 0:01:15]} 35. axb5 {[%clk 0:01:19]}  axb5 {[%clk 0:01:15]} 36. Rd2 {[%clk 0:01:10]}  Ra1 {[%clk 0:00:53]} 37. Kd4 {[%clk 0:01:07]}  Kd6 {[%clk 0:00:45]} 38. e5+ {[%clk 0:01:04]}  fxe5+ {[%clk 0:00:46]} 39. fxe5+ {[%clk 0:01:04]}  Ke7 {[%clk 0:00:47]} 40. Bf3 {[%clk 0:01:02]}  Ra3 {[%clk 0:00:37]} 41. Rb2 {[%clk 0:01:01]}  Rb3 {[%clk 0:00:36]} 42. Ra2 {[%clk 0:00:35]}  b4 {[%clk 0:00:36]} 43. Ra7+ {[%clk 0:00:34]}  Kf8 {[%clk 0:00:36]} 44. Ra8+ {[%clk 0:00:30]}  Kf7 {[%clk 0:00:35]} 45. Ra7+ {[%clk 0:00:30]}  Kg6 {[%clk 0:00:34]} 46. Be4+ {[%clk 0:00:30]}  Bf5 {[%clk 0:00:21]} 47. Ra6+ {[%clk 0:00:20]}  Kg5 {[%clk 0:00:21]} 48. Bxf5 {[%clk 0:00:16]}  Kxf5 {[%clk 0:00:22]} 49. e6 {[%clk 0:00:17]}  Kf6 {[%clk 0:00:20]} 50. Ra7 {[%clk 0:00:14]}  Rxc3 {[%clk 0:00:16]} 51. e7 {[%clk 0:00:14]}  Kf7 {[%clk 0:00:17]} 52. Rb7 {[%clk 0:00:13]}  Rg3 {[%clk 0:00:11]} 53. Kxc4 {[%clk 0:00:10]}  Rxg2 {[%clk 0:00:09]} 54. Kd5 {[%clk 0:00:11]}  Rd2+ {[%clk 0:00:06]} 55. Ke5 {[%clk 0:00:11]}  Rd3 {[%clk 0:00:04]} 56. h4 {[%clk 0:00:11]}  b3 {[%clk 0:00:03]} 57. h5 {[%clk 0:00:10]}  Rh3 {[%clk 0:00:02]} 58. Kd6 {[%clk 0:00:09]}  Rd3+ {[%clk 0:00:02]} 59. Ke5 {[%clk 0:00:09]}  b2 {[%clk 0:00:03]} 60. Rxb2 {[%clk 0:00:07]}  Re3+ {[%clk 0:00:03]} 61. Kf5 {[%clk 0:00:07]}  Rxe7 {[%clk 0:00:03]} 62. Rg2 {[%clk 0:00:06]}  Ra7 {[%clk 0:00:04]} 63. Kg5 {[%clk 0:00:06]}  Ra5+ {[%clk 0:00:04]} 64. Kh4 {[%clk 0:00:07]}  Rf5 {[%clk 0:00:04]} 65. Rg3 {[%clk 0:00:07]}  Kf6 {[%clk 0:00:04]} 66. Rg2 {[%clk 0:00:07]}  Rf4+ {[%clk 0:00:04]} 67. Kh3 {[%clk 0:00:07]}  Ra4 {[%clk 0:00:04]} 68. Rg1 {[%clk 0:00:07]}  Ra5 {[%clk 0:00:04]} 69. Kh4 {[%clk 0:00:07]}  Ra2 {[%clk 0:00:04]} 70. Rg3 {[%clk 0:00:06]}  Rh2+ {[%clk 0:00:04]} 71. Kg4 {[%clk 0:00:07]}  Rh1 {[%clk 0:00:03]} 72. Rf3+ {[%clk 0:00:07]}  Ke6 {[%clk 0:00:03]} 73. Re3+ {[%clk 0:00:08]}  Kf7 {[%clk 0:00:04]} 74. Rf3+ {[%clk 0:00:08]}  Kg8 {[%clk 0:00:04]} 75. Re3 {[%clk 0:00:09]}  Rg1+ {[%clk 0:00:04]} 76. Kh4 {[%clk 0:00:09]}  Kf7 {[%clk 0:00:03]} 77. Rf3+ {[%clk 0:00:10]}  Ke6 {[%clk 0:00:04]} 78. Rf8 {[%clk 0:00:09]}  Ke5 {[%clk 0:00:04]} 79. Rf7 {[%clk 0:00:09]}  h6 {[%clk 0:00:03]} 80. Rf2 {[%clk 0:00:08]}  Rg5 {[%clk 0:00:03]} 81. Rf1 {[%clk 0:00:08]}  Rf5 {[%clk 0:00:03]} 82. Re1+ {[%clk 0:00:09]}  Kf6 {[%clk 0:00:03]} 83. Rg1 {[%clk 0:00:09]}  Rf4+ {[%clk 0:00:04]} 84. Kh3 {[%clk 0:00:09]}  Rf3+ {[%clk 0:00:04]} 85. Kh4 {[%clk 0:00:09]}  Rf5 {[%clk 0:00:04]} 86. Rg2 {[%clk 0:00:09]}  Re5 {[%clk 0:00:04]} 87. Rf2+ {[%clk 0:00:09]}  Ke6 {[%clk 0:00:04]} 88. Rg2 {[%clk 0:00:09]}  Re4+ {[%clk 0:00:04]} 89. Kh3 {[%clk 0:00:09]}  Kf7 {[%clk 0:00:05]} 90. Rf2+ {[%clk 0:00:08]}  Kg8 {[%clk 0:00:03]} 91. Rg2 {[%clk 0:00:09]}  Re5 {[%clk 0:00:03]} 92. Kh4 {[%clk 0:00:09]}  Re6 {[%clk 0:00:03]} 93. Rg3 {[%clk 0:00:09]}  Ra6 {[%clk 0:00:03]} 94. Rg2 {[%clk 0:00:10]}  Ra1 {[%clk 0:00:04]} 95. Kg4 {[%clk 0:00:10]}  Rf1 {[%clk 0:00:03]} 96. Rg3 {[%clk 0:00:10]}  Kf7 {[%clk 0:00:03]} 97. Kh4 {[%clk 0:00:10]}  Kf6 {[%clk 0:00:03]} 98. Kg4 {[%clk 0:00:10]}  Rh1 {[%clk 0:00:02]} 99. Rf3+ {[%clk 0:00:10]}  Ke5 {[%clk 0:00:03]} 100. Re3+ {[%clk 0:00:11]}  Kd4 {[%clk 0:00:03]} 101. Re7 {[%clk 0:00:11]}  Rg1+ {[%clk 0:00:02]} 102. Kh4 {[%clk 0:00:12]}  Rg5 {[%clk 0:00:02]} 103. Re8 {[%clk 0:00:11]}  Kd3 {[%clk 0:00:02]} 104. Re7 {[%clk 0:00:12]}  Kd4 {[%clk 0:00:03]} 105. Re8 {[%clk 0:00:12]}  Kd5 {[%clk 0:00:03]} 106. Re7 {[%clk 0:00:12]}  Kd6 {[%clk 0:00:04]} 107. Re1 {[%clk 0:00:13]}  Re5 {[%clk 0:00:04]} 108. Rg1 {[%clk 0:00:13]}  Re4+ {[%clk 0:00:04]} 109. Kh3 {[%clk 0:00:12]}  Re7 {[%clk 0:00:05]} 110. Kh4 {[%clk 0:00:13]}  Ke6 {[%clk 0:00:05]} 111. Re1+ {[%clk 0:00:13]}  Kf6 {[%clk 0:00:05]} 112. Rf1+ {[%clk 0:00:13]}  Ke5 {[%clk 0:00:06]} 113. Re1+ {[%clk 0:00:14]}  Kd6 {[%clk 0:00:05]} 114. Rd1+ {[%clk 0:00:14]}  Kc7 {[%clk 0:00:05]} 115. Rc1+ {[%clk 0:00:14]}  Kd8 {[%clk 0:00:05]} 116. Rd1+ {[%clk 0:00:15]}  Ke8 {[%clk 0:00:06]} 117. Rf1 {[%clk 0:00:15]}  Re4+ {[%clk 0:00:06]} 118. Kh3 {[%clk 0:00:14]}  Ke7 {[%clk 0:00:06]} 119. Rf2 {[%clk 0:00:15]}  Ke6 {[%clk 0:00:06]} 120. Rf1 {[%clk 0:00:15]}  Rd4 {[%clk 0:00:05]} 121. Rf2 {[%clk 0:00:15]}  Rd5 {[%clk 0:00:05]} 122. Kh4 {[%clk 0:00:14]}  Rf5 {[%clk 0:00:05]} 123. Re2+ {[%clk 0:00:14]}  Kf6 {[%clk 0:00:05]} 124. Rg2 {[%clk 0:00:15]}  Rf4+ {[%clk 0:00:05]} 125. Kh3 {[%clk 0:00:15]}  Re4 {[%clk 0:00:05]} 126. Rg1 {[%clk 0:00:16]}  Re3+ {[%clk 0:00:04]} 127. Kh4 {[%clk 0:00:16]}  g5+ {[%clk 0:00:04]} 128. hxg6 {[%clk 0:00:15]}  Kg7 {[%clk 0:00:05]} 129. Kh5 {[%clk 0:00:15]}  Re4 {[%clk 0:00:04]} 130. Rg2 {[%clk 0:00:14]}  Rf4 {[%clk 0:00:04]} 131. Rg1 {[%clk 0:00:14]}  Rf2 {[%clk 0:00:04]} 132. Rg3 {[%clk 0:00:14]}  Rh2+ {[%clk 0:00:04]} 133. Kg4 {[%clk 0:00:14]}  Kxg6 {[%clk 0:00:04]} 134. Kf4+ {[%clk 0:00:15]}  Kf6 {[%clk 0:00:04]} 135. Kg4 {[%clk 0:00:15]}  h5+ {[%clk 0:00:04]} 136. Kf4 {[%clk 0:00:15]}  Rf2+ {[%clk 0:00:04]} 137. Rf3 {[%clk 0:00:16]}  Rg2 {[%clk 0:00:03]} 138. Rg3 {[%clk 0:00:16]}  Ra2 {[%clk 0:00:03]} 139. Rf3 {[%clk 0:00:16]}  Ra4+ {[%clk 0:00:03]} 140. Kg3+ {[%clk 0:00:16]}  Kg5 {[%clk 0:00:04]} 141. Kh3 {[%clk 0:00:17]}  Rh4+ {[%clk 0:00:04]} 142. Kg2 {[%clk 0:00:16]}  Rg4+ {[%clk 0:00:05]} 143. Rg3 {[%clk 0:00:17]}  Kf4 {[%clk 0:00:03]} 144. Rxg4+ {[%clk 0:00:16]}  hxg4 {[%clk 0:00:04]} 145. Kf2 {[%clk 0:00:15]}  g3+ {[%clk 0:00:05]} 146. Kg2 {[%clk 0:00:15]}  Kg4 {[%clk 0:00:06]} 147. Kg1 {[%clk 0:00:16]}  Kh3 {[%clk 0:00:06]} 148. Kh1 {[%clk 0:00:16]}  g2+ {[%clk 0:00:06]} 149. Kg1 {[%clk 0:00:16]}  Kg3 {[%clk 0:00:07]} 1/2-1/2


[Site "https://www.chess.com"]

[Event "Titled Tuesday Blitz May 03 Early 2022"]
[White "Bortnyk, Olexandr"]
[Black "Di Nicolantonio, Lucas"]
[WhiteFideId "14120828"]
[BlackFideId "680460"]
[WhiteElo "2723"]
[BlackElo "2381"]
[Result "1-0"]
[Round "01"]
[TimeControl "180+1"]
[Date "2022.05.03"]
[WhiteClock "0:00:24"]
[BlackClock "0:00:01"]

1. d4 {[%clk 0:02:55]}  g6 {[%clk 0:02:59]} 2. e4 {[%clk 0:02:47]}  Bg7 {[%clk 0:02:57]} 3. Nf3 {[%clk 0:02:48]}  d6 {[%clk 0:02:58]} 4. Bc4 {[%clk 0:02:47]}  e6 {[%clk 0:02:56]} 5. Bb3 {[%clk 0:02:45]}  Ne7 {[%clk 0:02:55]} 6. c3 {[%clk 0:02:44]}  h6 {[%clk 0:02:48]} 7. Qe2 {[%clk 0:02:31]}  b6 {[%clk 0:02:44]} 8. Bf4 {[%clk 0:02:24]}  Nd7 {[%clk 0:02:38]} 9. Nbd2 {[%clk 0:02:22]}  Bb7 {[%clk 0:02:33]} 10. h4 {[%clk 0:02:22]}  Nf6 {[%clk 0:02:21]} 11. O-O-O {[%clk 0:02:12]}  Qd7 {[%clk 0:02:05]} 12. e5 {[%clk 0:02:04]}  Nfd5 {[%clk 0:02:01]} 13. Bh2 {[%clk 0:02:02]}  h5 {[%clk 0:01:25]} 14. Ne4 {[%clk 0:02:00]}  Nf5 {[%clk 0:01:25]} 15. Kb1 {[%clk 0:01:57]}  a5 {[%clk 0:01:23]} 16. Bc4 {[%clk 0:01:49]}  O-O {[%clk 0:01:20]} 17. Qd2 {[%clk 0:01:43]}  b5 {[%clk 0:01:17]} 18. Bxd5 {[%clk 0:01:42]}  Bxd5 {[%clk 0:01:13]} 19. Nf6+ {[%clk 0:01:43]}  Bxf6 {[%clk 0:01:14]} 20. exf6 {[%clk 0:01:44]}  b4 {[%clk 0:00:59]} 21. c4 {[%clk 0:01:44]}  Bxc4 {[%clk 0:00:49]} 22. g4 {[%clk 0:01:38]}  hxg4 {[%clk 0:00:48]} 23. Ng5 {[%clk 0:01:28]}  Qa4 {[%clk 0:00:46]} 24. b3 {[%clk 0:01:25]}  Bxb3 {[%clk 0:00:46]} 25. axb3 {[%clk 0:01:26]}  Qxb3+ {[%clk 0:00:47]} 26. Qb2 {[%clk 0:01:26]}  Qxb2+ {[%clk 0:00:44]} 27. Kxb2 {[%clk 0:01:26]}  a4 {[%clk 0:00:41]} 28. Bf4 {[%clk 0:01:24]}  b3 {[%clk 0:00:38]} 29. Ka3 {[%clk 0:01:24]}  Rfb8 {[%clk 0:00:37]} 30. Rd2 {[%clk 0:01:21]}  Rb5 {[%clk 0:00:35]} 31. h5 {[%clk 0:01:14]}  gxh5 {[%clk 0:00:24]} 32. Ne4 {[%clk 0:01:01]}  e5 {[%clk 0:00:15]} 33. Nc3 {[%clk 0:00:53]}  Nxd4 {[%clk 0:00:11]} 34. Rxd4 {[%clk 0:00:48]}  exd4 {[%clk 0:00:10]} 35. Nxb5 {[%clk 0:00:48]}  Re8 {[%clk 0:00:08]} 36. Nxc7 {[%clk 0:00:45]}  Re2 {[%clk 0:00:08]} 37. Nd5 {[%clk 0:00:44]}  Ra2+ {[%clk 0:00:08]} 38. Kb4 {[%clk 0:00:44]}  b2 {[%clk 0:00:08]} 39. Ka5 {[%clk 0:00:33]}  Ra1 {[%clk 0:00:07]} 40. Rxh5 {[%clk 0:00:33]}  Re1 {[%clk 0:00:01]} 41. Be3 {[%clk 0:00:24]} 1-0


[Site "https://www.chess.com"]